[Event "Live Chess"]
[Site "Chess.com"]
[Date "2024.06.02"]
[Round "-"]
[White "wadsy27"]
[Black "ACM42"]
[Result "1-0"]
[WhiteElo "2577"]
[BlackElo "2177"]
[TimeControl "300"]
[EndTime "3:31:12 PDT"]
[Termination "wadsy27 won by resignation"]

1. Nf3 {[%clk 0:04:58.2]} 1... Nf6 {[%clk 0:04:56.6]} 2. d4 {[%clk 0:04:57.5]}
2... g6 {[%clk 0:04:55.9]} 3. e3 {[%clk 0:04:57.1]} 3... Bg7 {[%clk 0:04:54.6]}
4. b3 {[%clk 0:04:56.8]} 4... O-O {[%clk 0:04:53.6]} 5. Bb2 {[%clk 0:04:56.5]}
5... d6 {[%clk 0:04:52.5]} 6. Be2 {[%clk 0:04:56.1]} 6... b6 {[%clk 0:04:51.7]}
7. a4 {[%clk 0:04:54.4]} 7... Bb7 {[%clk 0:04:50.9]} 8. a5 {[%clk 0:04:52.6]}
8... a6 {[%clk 0:04:47.3]} 9. axb6 {[%clk 0:04:50.9]} 9... cxb6 {[%clk
0:04:46.1]} 10. O-O {[%clk 0:04:50.5]} 10... Nbd7 {[%clk 0:04:36.5]} 11. c4
{[%clk 0:04:48.5]} 11... a5 {[%clk 0:04:33.4]} 12. Nc3 {[%clk 0:04:46.5]} 12...
e5 {[%clk 0:04:29]} 13. Ba3 {[%clk 0:04:41.4]} 13... Qb8 {[%clk 0:04:20.4]} 14.
dxe5 {[%clk 0:04:39.6]} 14... dxe5 {[%clk 0:04:17.7]} 15. Bxf8 {[%clk
0:04:38.3]} 15... Bxf8 {[%clk 0:04:17.6]} 16. Nd5 {[%clk 0:04:33.7]} 16... Ne4
{[%clk 0:04:08]} 17. Bd3 {[%clk 0:04:24.6]} 17... Nec5 {[%clk 0:04:06.5]} 18.
Bc2 {[%clk 0:04:20.4]} 18... e4 {[%clk 0:03:54.6]} 19. Ng5 {[%clk 0:04:17.3]}
19... Bg7 {[%clk 0:03:53.5]} 20. Nxe4 {[%clk 0:04:14.4]} 20... Nxe4 {[%clk
0:03:46.6]} 21. Bxe4 {[%clk 0:04:14.3]} 21... Nc5 {[%clk 0:03:38.5]} 22. Bc2
{[%clk 0:04:06.5]} 22... Bxd5 {[%clk 0:03:34.2]} 23. Qxd5 {[%clk 0:04:03.4]}
23... Bxa1 {[%clk 0:03:33.1]} 24. Rxa1 {[%clk 0:03:56.4]} 24... Ra7 {[%clk
0:03:31.8]} 25. h4 {[%clk 0:03:44.4]} 25... Rd7 {[%clk 0:03:27]} 26. Qf3 {[%clk
0:03:15.9]} 26... Qe5 {[%clk 0:03:24.9]} 27. Rd1 {[%clk 0:03:02.4]} 27... h5
{[%clk 0:03:20.6]} 28. Rxd7 {[%clk 0:02:47.8]} 28... Nxd7 {[%clk 0:03:19.2]} 29.
Qc6 {[%clk 0:02:38.5]} 29... Qa1+ {[%clk 0:03:02.2]} 30. Kh2 {[%clk 0:02:35.4]}
30... Qe5+ {[%clk 0:03:00.5]} 31. g3 {[%clk 0:02:32.1]} 31... Qc3 {[%clk
0:02:19.6]} 32. Bxg6 {[%clk 0:02:23.8]} 32... fxg6 {[%clk 0:02:18.2]} 33. Qxd7
{[%clk 0:02:09.1]} 33... Qxb3 {[%clk 0:02:15.5]} 34. e4 {[%clk 0:02:03.6]} 34...
Qxc4 {[%clk 0:02:07.2]} 35. e5 {[%clk 0:02:01]} 35... Qc5 {[%clk 0:01:57.2]} 36.
Qe6+ {[%clk 0:01:59.1]} 36... Kh7 {[%clk 0:01:50.9]} 37. Qf7+ {[%clk 0:01:57.3]}
37... Kh6 {[%clk 0:01:49.9]} 38. e6 {[%clk 0:01:56.6]} 1-0

[Event "Live Chess"]
[Site "Chess.com"]
[Date "2024.06.02"]
[Round "-"]
[White "JanMur7"]
[Black "missedJariChance"]
[Result "1-0"]
[WhiteElo "2293"]
[BlackElo "1353"]
[TimeControl "300"]
[EndTime "3:31:26 PDT"]
[Termination "JanMur7 won by resignation"]

1. d4 {[%clk 0:04:57.7]} 1... d5 {[%clk 0:04:58.5]} 2. c4 {[%clk 0:04:56.7]}
2... e6 {[%clk 0:04:56.6]} 3. Nc3 {[%clk 0:04:55.1]} 3... Nf6 {[%clk 0:04:53]}
4. cxd5 {[%clk 0:04:54.4]} 4... exd5 {[%clk 0:04:49.6]} 5. Bg5 {[%clk
0:04:53.7]} 5... Be7 {[%clk 0:04:46.2]} 6. e3 {[%clk 0:04:52.1]} 6... O-O {[%clk
0:04:44.7]} 7. Bd3 {[%clk 0:04:50.5]} 7... b6 {[%clk 0:04:30.4]} 8. Nf3 {[%clk
0:04:47.6]} 8... Bb7 {[%clk 0:04:28.2]} 9. Ne5 {[%clk 0:04:42.1]} 9... Nbd7
{[%clk 0:04:24.6]} 10. f4 {[%clk 0:04:41.6]} 10... c5 {[%clk 0:03:57.7]} 11. O-O
{[%clk 0:04:34.7]} 11... h6 {[%clk 0:03:49.9]} 12. Bh4 {[%clk 0:04:31.3]} 12...
Rc8 {[%clk 0:03:35.9]} 13. Bf5 {[%clk 0:04:27]} 13... Rb8 {[%clk 0:03:19]} 14.
Qf3 {[%clk 0:04:00.2]} 14... g6 {[%clk 0:03:06]} 15. Bxd7 {[%clk 0:03:32.8]}
15... Nxd7 {[%clk 0:03:00.3]} 16. Bxe7 {[%clk 0:03:31.1]} 16... Qxe7 {[%clk
0:02:57.9]} 17. Nxd5 {[%clk 0:03:28.8]} 17... Bxd5 {[%clk 0:02:50.7]} 18. Qxd5
{[%clk 0:03:28.1]} 18... Nxe5 {[%clk 0:02:43.3]} 19. Qxe5 {[%clk 0:03:24.5]}
19... Qxe5 {[%clk 0:02:27.5]} 20. fxe5 {[%clk 0:03:22.5]} 20... cxd4 {[%clk
0:02:14.8]} 21. exd4 {[%clk 0:03:22.4]} 21... Rbd8 {[%clk 0:02:13.7]} 22. Rfd1
{[%clk 0:03:18.3]} 22... Kg7 {[%clk 0:02:11.9]} 23. Rac1 {[%clk 0:03:14.8]}
23... g5 {[%clk 0:02:08.1]} 24. Rc7 {[%clk 0:03:04.3]} 24... a6 {[%clk
0:01:48.9]} 25. d5 {[%clk 0:02:54.5]} 25... Rfe8 {[%clk 0:01:44]} 26. e6 {[%clk
0:02:46]} 26... Kf6 {[%clk 0:01:36.6]} 27. Rxf7+ {[%clk 0:02:43.2]} 1-0

[Event "Live Chess"]
[Site "Chess.com"]
[Date "2024.06.02"]
[Round "-"]
[White "juniortay"]
[Black "vincents82"]
[Result "1-0"]
[WhiteElo "2368"]
[BlackElo "2007"]
[TimeControl "300"]
[EndTime "3:31:28 PDT"]
[Termination "juniortay won by resignation"]

1. e4 {[%clk 0:04:56.3]} 1... d5 {[%clk 0:04:57.9]} 2. Nf3 {[%clk 0:04:56.2]}
2... e6 {[%clk 0:04:55.1]} 3. d4 {[%clk 0:03:46.1]} 3... dxe4 {[%clk 0:04:45.1]}
4. Ng5 {[%clk 0:03:44.4]} 4... Nf6 {[%clk 0:04:42.6]} 5. Nc3 {[%clk 0:03:43.2]}
5... Nbd7 {[%clk 0:04:39.9]} 6. Ncxe4 {[%clk 0:03:41.6]} 6... Nxe4 {[%clk
0:04:38.9]} 7. Nxe4 {[%clk 0:03:40.2]} 7... Nf6 {[%clk 0:04:36.2]} 8. Nxf6+
{[%clk 0:03:37.6]} 8... Qxf6 {[%clk 0:04:35]} 9. Bd3 {[%clk 0:03:35.5]} 9... Bd6
{[%clk 0:04:30.9]} 10. O-O {[%clk 0:03:34.2]} 10... Bd7 {[%clk 0:04:28.9]} 11.
c3 {[%clk 0:03:33.1]} 11... Bc6 {[%clk 0:04:27.4]} 12. Qh5 {[%clk 0:03:31.1]}
12... g6 {[%clk 0:04:19.9]} 13. Qh6 {[%clk 0:03:28.4]} 13... Bf8 {[%clk
0:04:13.1]} 14. Qh3 {[%clk 0:03:26.3]} 14... Bg7 {[%clk 0:04:08.6]} 15. Bd2
{[%clk 0:03:24.6]} 15... O-O {[%clk 0:04:07.1]} 16. Rae1 {[%clk 0:03:23.6]}
16... Rad8 {[%clk 0:04:00]} 17. Qg3 {[%clk 0:03:15.9]} 17... Qe7 {[%clk
0:03:43.1]} 18. h4 {[%clk 0:03:12.3]} 18... h5 {[%clk 0:03:41.3]} 19. Bg5 {[%clk
0:03:06.9]} 19... Bf6 {[%clk 0:03:40]} 20. Re5 {[%clk 0:03:00.3]} 20... Bxg5
{[%clk 0:03:36.4]} 21. Rxg5 {[%clk 0:02:59.1]} 21... Rd5 {[%clk 0:03:23.3]} 22.
Re1 {[%clk 0:02:55.9]} 22... Rxg5 {[%clk 0:03:21.6]} 23. hxg5 {[%clk 0:02:54.8]}
23... Rd8 {[%clk 0:03:14.9]} 24. f4 {[%clk 0:02:48.7]} 24... Qd6 {[%clk
0:03:06.7]} 25. a3 {[%clk 0:02:40.6]} 25... a6 {[%clk 0:03:05.3]} 26. Re5 {[%clk
0:02:35.9]} 26... b5 {[%clk 0:02:54]} 27. Qh4 {[%clk 0:02:18]} 27... Kg7 {[%clk
0:02:48.3]} 28. g4 {[%clk 0:02:07.6]} 28... Rh8 {[%clk 0:02:46.5]} 29. f5 {[%clk
0:01:56.7]} 29... hxg4 {[%clk 0:02:41.4]} 30. f6+ {[%clk 0:01:53.6]} 30... Kg8
{[%clk 0:02:38.5]} 31. Qxg4 {[%clk 0:01:52.8]} 31... Bd5 {[%clk 0:02:20.3]} 32.
b4 {[%clk 0:01:41.6]} 32... Qc6 {[%clk 0:02:07.9]} 33. Bxg6 {[%clk 0:01:31.8]}
33... fxg6 {[%clk 0:01:59.4]} 34. f7+ {[%clk 0:01:30.7]} 34... Kg7 {[%clk
0:01:52.1]} 35. Qf4 {[%clk 0:01:06.4]} 35... Qd6 {[%clk 0:01:49]} 36. Qf6+
{[%clk 0:00:58.8]} 36... Kh7 {[%clk 0:01:46.1]} 37. Re3 {[%clk 0:00:55.6]} 1-0

[Event "Live Chess"]
[Site "Chess.com"]
[Date "2024.06.02"]
[Round "-"]
[White "Thebigsqueeze"]
[Black "booktrunk"]
[Result "1-0"]
[WhiteElo "2273"]
[BlackElo "1500"]
[TimeControl "300"]
[EndTime "3:31:34 PDT"]
[Termination "Thebigsqueeze won by resignation"]

1. d4 {[%clk 0:04:58.2]} 1... b6 {[%clk 0:04:45.3]} 2. c4 {[%clk 0:04:56.4]}
2... Bb7 {[%clk 0:04:44.1]} 3. Nc3 {[%clk 0:04:54.6]} 3... h6 {[%clk 0:04:38.8]}
4. Nf3 {[%clk 0:04:53.2]} 4... e6 {[%clk 0:04:37.2]} 5. e4 {[%clk 0:04:50]} 5...
Bb4 {[%clk 0:04:35.5]} 6. d5 {[%clk 0:04:48.4]} 6... exd5 {[%clk 0:04:33.8]} 7.
cxd5 {[%clk 0:04:40.2]} 7... Nf6 {[%clk 0:04:31.5]} 8. Bd3 {[%clk 0:04:35.9]}
8... c6 {[%clk 0:04:27.7]} 9. O-O {[%clk 0:04:29.3]} 9... Bxc3 {[%clk
0:04:24.9]} 10. bxc3 {[%clk 0:04:27]} 10... cxd5 {[%clk 0:04:23.9]} 11. e5
{[%clk 0:04:20.2]} 11... Ne4 {[%clk 0:04:22.2]} 12. Ba3 {[%clk 0:04:11.6]} 12...
Nxc3 {[%clk 0:04:15.9]} 13. Qb3 {[%clk 0:03:48.2]} 13... Ne4 {[%clk 0:04:10.9]}
14. Nd4 {[%clk 0:03:41.6]} 14... Nc6 {[%clk 0:04:08.3]} 15. Nb5 {[%clk
0:03:32.5]} 15... Na5 {[%clk 0:04:00.9]} 16. Qb4 {[%clk 0:03:18.2]} 16... Nc6
{[%clk 0:03:52.4]} 17. Qb2 {[%clk 0:03:04.4]} 17... Nc5 {[%clk 0:03:41.7]} 18.
Nd6+ {[%clk 0:02:58.5]} 18... Kf8 {[%clk 0:03:34]} 19. Bxc5 {[%clk 0:02:57.2]}
19... bxc5 {[%clk 0:03:30.9]} 20. Qb3 {[%clk 0:02:51.6]} 20... c4 {[%clk
0:03:23.3]} 21. Qxb7 {[%clk 0:02:48.6]} 21... cxd3 {[%clk 0:03:19.6]} 22. Rad1
{[%clk 0:02:36.5]} 22... Rb8 {[%clk 0:03:16.9]} 23. Qa6 {[%clk 0:02:34.4]} 23...
Nxe5 {[%clk 0:03:14.1]} 24. f4 {[%clk 0:02:21.4]} 24... Ng4 {[%clk 0:03:09.1]}
25. Rxd3 {[%clk 0:01:59.6]} 25... Qb6+ {[%clk 0:03:06.7]} 26. Qxb6 {[%clk
0:01:57.7]} 26... Rxb6 {[%clk 0:03:05.3]} 27. Rxd5 {[%clk 0:01:51.7]} 27... Ne3
{[%clk 0:03:03.5]} 28. Re1 {[%clk 0:01:50.9]} 28... Rxd6 {[%clk 0:02:43.2]} 29.
Rxd6 {[%clk 0:01:43.3]} 29... Nf5 {[%clk 0:02:38.8]} 30. Rxd7 {[%clk 0:01:41.3]}
30... g6 {[%clk 0:02:38.1]} 31. Rd8+ {[%clk 0:01:31.8]} 31... Kg7 {[%clk
0:02:38]} 32. Rxh8 {[%clk 0:01:30.6]} 32... Kxh8 {[%clk 0:02:36.1]} 33. Re8+
{[%clk 0:01:30.1]} 33... Kg7 {[%clk 0:02:34.8]} 34. Ra8 {[%clk 0:01:29.6]} 34...
Kf6 {[%clk 0:02:29.5]} 35. Rxa7 {[%clk 0:01:25.9]} 35... Nd4 {[%clk 0:02:29.4]}
36. a4 {[%clk 0:01:23.2]} 36... Ne2+ {[%clk 0:02:28]} 37. Kf2 {[%clk 0:01:21.2]}
37... Nxf4 {[%clk 0:02:27.9]} 38. a5 {[%clk 0:01:18.9]} 38... Nd5 {[%clk
0:02:27.8]} 39. a6 {[%clk 0:01:17.7]} 39... Nb4 {[%clk 0:02:25.4]} 40. Rb7
{[%clk 0:01:14.3]} 40... Nxa6 {[%clk 0:02:22.9]} 41. Rb6+ {[%clk 0:01:13.1]}
41... Kg5 {[%clk 0:02:21.7]} 42. Rxa6 {[%clk 0:01:12.4]} 42... f5 {[%clk
0:02:21]} 43. Kf3 {[%clk 0:01:10.4]} 43... h5 {[%clk 0:02:20.2]} 44. g3 {[%clk
0:01:08.9]} 44... Kh6 {[%clk 0:02:17.7]} 45. h4 {[%clk 0:01:06.7]} 45... Kg7
{[%clk 0:02:15.2]} 46. Kf4 {[%clk 0:01:06.1]} 46... Kh6 {[%clk 0:02:13.7]} 47.
Rb6 {[%clk 0:01:03.5]} 47... Kg7 {[%clk 0:02:11.3]} 48. Kg5 {[%clk 0:01:03]}
48... Kf7 {[%clk 0:02:10.4]} 49. Rxg6 {[%clk 0:01:02.2]} 1-0

[Event "Live Chess"]
[Site "Chess.com"]
[Date "2024.06.02"]
[Round "-"]
[White "CarmelJane"]
[Black "TigerTank70"]
[Result "0-1"]
[WhiteElo "2070"]
[BlackElo "2217"]
[TimeControl "300"]
[EndTime "3:32:29 PDT"]
[Termination "TigerTank70 won by resignation"]

1. Nf3 {[%clk 0:04:57.7]} 1... d6 {[%clk 0:04:58.4]} 2. b3 {[%clk 0:04:56.4]}
2... Nc6 {[%clk 0:04:57]} 3. Bb2 {[%clk 0:04:56.1]} 3... e5 {[%clk 0:04:56.1]}
4. e4 {[%clk 0:04:55.1]} 4... Be7 {[%clk 0:04:54.7]} 5. Bb5 {[%clk 0:04:53.8]}
5... Bf6 {[%clk 0:04:53.5]} 6. O-O {[%clk 0:04:52.5]} 6... Ne7 {[%clk
0:04:51.1]} 7. h3 {[%clk 0:04:52]} 7... Ng6 {[%clk 0:04:50.4]} 8. Nc3 {[%clk
0:04:47.9]} 8... a6 {[%clk 0:04:44.7]} 9. Be2 {[%clk 0:04:43.5]} 9... Nf4 {[%clk
0:04:43.5]} 10. Nd5 {[%clk 0:04:41.4]} 10... O-O {[%clk 0:04:40.2]} 11. Nxf6+
{[%clk 0:04:36.7]} 11... Qxf6 {[%clk 0:04:38.2]} 12. d3 {[%clk 0:04:31.6]} 12...
Bxh3 {[%clk 0:04:19]} 13. Ne1 {[%clk 0:04:17.9]} 13... Bd7 {[%clk 0:04:09]} 14.
Bg4 {[%clk 0:04:09.7]} 14... Bxg4 {[%clk 0:03:59.1]} 15. Qxg4 {[%clk 0:04:09.6]}
15... h5 {[%clk 0:03:58]} 16. Qf3 {[%clk 0:04:02]} 16... Qg6 {[%clk 0:03:47.1]}
17. d4 {[%clk 0:03:54.7]} 17... f5 {[%clk 0:03:42.2]} 18. exf5 {[%clk
0:03:45.5]} 18... Rxf5 {[%clk 0:03:40.3]} 19. dxe5 {[%clk 0:03:42.9]} 19... Nxg2
{[%clk 0:03:28]} 20. Qd5+ {[%clk 0:03:31.5]} 20... Kh8 {[%clk 0:03:25.7]} 21.
Nxg2 {[%clk 0:03:30]} 21... Nxe5 {[%clk 0:03:21.7]} 22. Bxe5 {[%clk 0:03:27.5]}
22... Rxe5 {[%clk 0:03:19.9]} 23. Qxb7 {[%clk 0:03:19.2]} 23... Rf8 {[%clk
0:03:09.9]} 24. Rae1 {[%clk 0:02:51]} 24... Rg5 {[%clk 0:03:07.8]} 25. Qe4
{[%clk 0:02:38.6]} 25... Rff5 {[%clk 0:02:55.9]} 26. Qe8+ {[%clk 0:02:31.3]}
26... Kh7 {[%clk 0:02:55.3]} 27. Qxg6+ {[%clk 0:02:29.9]} 27... Rxg6 {[%clk
0:02:55.2]} 28. Kh2 {[%clk 0:02:17.9]} 28... h4 {[%clk 0:02:51.1]} 29. Ne3
{[%clk 0:02:08.3]} 29... Rf3 {[%clk 0:02:49.5]} 30. Rg1 {[%clk 0:01:36.2]} 30...
Rxf2+ {[%clk 0:02:47.3]} 31. Kh3 {[%clk 0:01:33.8]} 31... Rf3+ {[%clk
0:02:32.3]} 32. Kxh4 {[%clk 0:01:26.5]} 32... Rxg1 {[%clk 0:02:30.4]} 33. Rxg1
{[%clk 0:01:23.2]} 33... Rxe3 {[%clk 0:02:28.7]} 34. Kg5 {[%clk 0:01:19.9]}
34... Re2 {[%clk 0:02:27.3]} 35. Rh1+ {[%clk 0:01:18.3]} 35... Kg8 {[%clk
0:02:25.7]} 36. Kg6 {[%clk 0:01:17.7]} 36... Rxc2 {[%clk 0:02:23.9]} 37. Re1
{[%clk 0:01:16.1]} 37... Rg2+ {[%clk 0:02:23]} 38. Kf5 {[%clk 0:01:15]} 38...
Kf7 {[%clk 0:02:22]} 39. Rc1 {[%clk 0:01:13.6]} 39... c5 {[%clk 0:02:16.6]} 40.
a4 {[%clk 0:01:10.4]} 40... g6+ {[%clk 0:02:15.4]} 41. Kf4 {[%clk 0:01:09]}
41... Ke6 {[%clk 0:02:14.4]} 42. Re1+ {[%clk 0:01:04.2]} 42... Kd7 {[%clk
0:02:11.2]} 43. Rh1 {[%clk 0:01:00.8]} 43... Kc6 {[%clk 0:02:05.3]} 44. Rh8
{[%clk 0:00:54.3]} 44... Rb2 {[%clk 0:01:58.1]} 45. Rh3 {[%clk 0:00:42.8]} 45...
d5 {[%clk 0:01:57.1]} 46. Kg5 {[%clk 0:00:42.3]} 46... d4 {[%clk 0:01:47.6]} 47.
Kxg6 {[%clk 0:00:39.9]} 47... Rc2 {[%clk 0:01:47]} 48. Kf5 {[%clk 0:00:37.9]}
48... Kd5 {[%clk 0:01:46.4]} 49. Rh6 {[%clk 0:00:33.1]} 49... Rf2+ {[%clk
0:01:42.7]} 50. Kg4 {[%clk 0:00:31.6]} 50... Rb2 {[%clk 0:01:41.3]} 51. Rxa6
{[%clk 0:00:25.5]} 51... Rxb3 {[%clk 0:01:39.1]} 52. Kf4 {[%clk 0:00:25.1]}
52... c4 {[%clk 0:01:34.1]} 53. Ra8 {[%clk 0:00:24.6]} 53... c3 {[%clk
0:01:32.7]} 54. Rd8+ {[%clk 0:00:23.4]} 54... Kc4 {[%clk 0:01:31.4]} 55. a5
{[%clk 0:00:22.8]} 55... Ra3 {[%clk 0:01:29.1]} 56. Ke4 {[%clk 0:00:18.9]} 56...
c2 {[%clk 0:01:20.4]} 57. Rxd4+ {[%clk 0:00:18.1]} 57... Kb3 {[%clk 0:01:15.8]}
58. Rd3+ {[%clk 0:00:16.8]} 58... Kb2 {[%clk 0:01:14.6]} 59. Rd2 {[%clk
0:00:15.9]} 59... Kb1 {[%clk 0:01:12.2]} 0-1

[Event "Live Chess"]
[Site "Chess.com"]
[Date "2024.06.02"]
[Round "-"]
[White "MellowAesthetic"]
[Black "Duke_of_Bebington"]
[Result "0-1"]
[WhiteElo "2060"]
[BlackElo "1654"]
[TimeControl "300"]
[EndTime "3:33:05 PDT"]
[Termination "Duke_of_Bebington won on time"]

1. e4 {[%clk 0:04:57.9]} 1... e5 {[%clk 0:04:58.4]} 2. Nf3 {[%clk 0:04:56.7]}
2... Nf6 {[%clk 0:04:57.1]} 3. Nxe5 {[%clk 0:04:55.6]} 3... d6 {[%clk
0:04:55.9]} 4. Nf3 {[%clk 0:04:55.2]} 4... Nxe4 {[%clk 0:04:54.7]} 5. d4 {[%clk
0:04:54.9]} 5... d5 {[%clk 0:04:53.9]} 6. Bd3 {[%clk 0:04:54.4]} 6... Bd6 {[%clk
0:04:50.9]} 7. O-O {[%clk 0:04:53.7]} 7... O-O {[%clk 0:04:50]} 8. c4 {[%clk
0:04:52.8]} 8... c6 {[%clk 0:04:48.8]} 9. Re1 {[%clk 0:04:50.2]} 9... Re8 {[%clk
0:04:25.5]} 10. Nc3 {[%clk 0:04:48.9]} 10... Nxc3 {[%clk 0:04:09.1]} 11. bxc3
{[%clk 0:04:18.7]} 11... h6 {[%clk 0:04:01.8]} 12. c5 {[%clk 0:03:25.3]} 12...
Bc7 {[%clk 0:04:00.4]} 13. Be3 {[%clk 0:02:55.5]} 13... Nd7 {[%clk 0:03:53.6]}
14. Qd2 {[%clk 0:02:43.5]} 14... Qf6 {[%clk 0:03:39]} 15. Rab1 {[%clk
0:01:51.6]} 15... Nf8 {[%clk 0:03:31]} 16. Kh1 {[%clk 0:01:33.9]} 16... Bg4
{[%clk 0:03:21]} 17. Ng1 {[%clk 0:01:33.1]} 17... b6 {[%clk 0:03:12.4]} 18. h3
{[%clk 0:01:13.7]} 18... Bh5 {[%clk 0:03:10]} 19. f4 {[%clk 0:01:09]} 19... Bg6
{[%clk 0:03:01.3]} 20. f5 {[%clk 0:00:50.6]} 20... Bh7 {[%clk 0:02:59.2]} 21.
Bf4 {[%clk 0:00:41.1]} 21... Bxf4 {[%clk 0:02:44.5]} 22. Qxf4 {[%clk 0:00:41]}
22... bxc5 {[%clk 0:02:43.9]} 23. Nf3 {[%clk 0:00:34.6]} 23... c4 {[%clk
0:02:39.3]} 24. Bc2 {[%clk 0:00:33.4]} 24... g5 {[%clk 0:02:29.7]} 25. Qg4
{[%clk 0:00:26.3]} 25... Nd7 {[%clk 0:01:56.1]} 26. Rb7 {[%clk 0:00:21.9]} 26...
Rxe1+ {[%clk 0:01:47.7]} 27. Nxe1 {[%clk 0:00:21.8]} 27... Qd8 {[%clk
0:01:35.3]} 28. Nf3 {[%clk 0:00:09.4]} 28... Nf6 {[%clk 0:01:34.3]} 29. Qg3
{[%clk 0:00:07.5]} 29... Ne4 {[%clk 0:01:33.3]} 30. Bxe4 {[%clk 0:00:05.9]}
30... dxe4 {[%clk 0:01:32.6]} 31. Ne5 {[%clk 0:00:05.8]} 31... Qd6 {[%clk
0:01:24.2]} 32. Nxf7 {[%clk 0:00:04.7]} 32... Qxg3 {[%clk 0:01:22.6]} 0-1

[Event "Live Chess"]
[Site "Chess.com"]
[Date "2024.06.02"]
[Round "-"]
[White "LL220284LL"]
[Black "KeithArkell"]
[Result "1-0"]
[WhiteElo "2508"]
[BlackElo "2404"]
[TimeControl "300"]
[EndTime "3:33:12 PDT"]
[Termination "LL220284LL won by resignation"]

1. e3 {[%clk 0:04:57.8]} 1... c5 {[%clk 0:04:58.9]} 2. b3 {[%clk 0:04:56.8]}
2... Nc6 {[%clk 0:04:57.6]} 3. Bb2 {[%clk 0:04:55.9]} 3... Nf6 {[%clk
0:04:56.6]} 4. Nf3 {[%clk 0:04:54.8]} 4... g6 {[%clk 0:04:56.1]} 5. Be2 {[%clk
0:04:53]} 5... Bg7 {[%clk 0:04:55.4]} 6. O-O {[%clk 0:04:52.1]} 6... O-O {[%clk
0:04:54.7]} 7. d4 {[%clk 0:04:50.6]} 7... cxd4 {[%clk 0:04:53.5]} 8. Nxd4 {[%clk
0:04:50.5]} 8... d6 {[%clk 0:04:51]} 9. Nd2 {[%clk 0:04:49]} 9... Nxd4 {[%clk
0:04:49.3]} 10. Bxd4 {[%clk 0:04:47.6]} 10... Bd7 {[%clk 0:04:47.2]} 11. c4
{[%clk 0:04:45.8]} 11... Bc6 {[%clk 0:04:46.4]} 12. Bf3 {[%clk 0:04:44.7]} 12...
a5 {[%clk 0:04:45.2]} 13. Qc2 {[%clk 0:04:41.2]} 13... Bxf3 {[%clk 0:04:42.9]}
14. Nxf3 {[%clk 0:04:41.1]} 14... Qc7 {[%clk 0:04:40.8]} 15. Qb2 {[%clk
0:04:37.7]} 15... Rfc8 {[%clk 0:04:39]} 16. Rac1 {[%clk 0:04:36.1]} 16... Ne8
{[%clk 0:04:37.3]} 17. Rfd1 {[%clk 0:04:34.2]} 17... Bxd4 {[%clk 0:04:32.1]} 18.
Nxd4 {[%clk 0:04:34.1]} 18... Nf6 {[%clk 0:04:29.4]} 19. Nb5 {[%clk 0:04:31.8]}
19... Qc6 {[%clk 0:04:28.9]} 20. Nxd6 {[%clk 0:04:28.6]} 20... Rd8 {[%clk
0:04:24.4]} 21. Nb5 {[%clk 0:04:24.5]} 21... Rd7 {[%clk 0:04:19.5]} 22. Nd4
{[%clk 0:04:15.6]} 22... Qc7 {[%clk 0:04:15.6]} 23. Nb5 {[%clk 0:04:13.5]} 23...
Qc6 {[%clk 0:04:14.1]} 24. h3 {[%clk 0:04:12.5]} 24... Rad8 {[%clk 0:04:12.7]}
25. Qe2 {[%clk 0:04:09.6]} 25... Qe4 {[%clk 0:04:07.5]} 26. Rxd7 {[%clk
0:04:05.5]} 26... Rxd7 {[%clk 0:04:07.4]} 27. Rd1 {[%clk 0:04:04.2]} 27... Rxd1+
{[%clk 0:04:01.4]} 28. Qxd1 {[%clk 0:04:04.1]} 28... Kg7 {[%clk 0:04:00.3]} 29.
Nc3 {[%clk 0:03:57.3]} 29... Qe5 {[%clk 0:03:58.4]} 30. Qd4 {[%clk 0:03:54.1]}
30... Qf5 {[%clk 0:03:57.6]} 31. g4 {[%clk 0:03:43.5]} 31... Qg5 {[%clk
0:03:47.5]} 32. Ne4 {[%clk 0:03:23.7]} 32... Qh4 {[%clk 0:03:46.3]} 33. Nxf6
{[%clk 0:03:19.3]} 33... exf6 {[%clk 0:03:44.7]} 34. Kg2 {[%clk 0:03:16.9]}
34... h5 {[%clk 0:03:42]} 35. Qe4 {[%clk 0:03:13.1]} 35... hxg4 {[%clk
0:03:38.8]} 36. hxg4 {[%clk 0:03:13]} 36... Qg5 {[%clk 0:03:37.8]} 37. Kf3
{[%clk 0:03:10.7]} 37... b6 {[%clk 0:03:36.7]} 38. Qf4 {[%clk 0:03:07.1]} 38...
Qh4 {[%clk 0:03:35.4]} 39. Ke2 {[%clk 0:03:05.1]} 39... Qh1 {[%clk 0:03:30.2]}
40. g5 {[%clk 0:03:00.3]} 40... fxg5 {[%clk 0:03:28.3]} 41. Qxg5 {[%clk
0:03:00.2]} 41... Qa1 {[%clk 0:03:25.5]} 42. Qb5 {[%clk 0:02:53.7]} 42... Qxa2+
{[%clk 0:03:24.4]} 43. Kf3 {[%clk 0:02:52.2]} 43... Qc2 {[%clk 0:03:15.1]} 44.
Qxb6 {[%clk 0:02:45.5]} 44... a4 {[%clk 0:03:13.2]} 45. Qd4+ {[%clk 0:02:42.6]}
45... Kh7 {[%clk 0:03:10.7]} 46. bxa4 {[%clk 0:02:41.1]} 46... Qxa4 {[%clk
0:03:09.9]} 47. c5 {[%clk 0:02:39.5]} 47... Qc6+ {[%clk 0:03:07.4]} 48. e4
{[%clk 0:02:36.7]} 48... f5 {[%clk 0:03:03.9]} 49. Ke3 {[%clk 0:02:21.4]} 49...
fxe4 {[%clk 0:03:03]} 50. Qd6 {[%clk 0:02:20.4]} 50... Qb5 {[%clk 0:02:52.8]}
51. c6 {[%clk 0:02:17.9]} 51... Qb3+ {[%clk 0:02:44.5]} 52. Kxe4 {[%clk
0:02:15.8]} 52... Qc2+ {[%clk 0:02:43.8]} 53. Ke3 {[%clk 0:02:13.5]} 53... Qc1+
{[%clk 0:02:42.6]} 54. Ke4 {[%clk 0:02:07.6]} 54... Qc2+ {[%clk 0:02:40.7]} 55.
Kf3 {[%clk 0:02:03.3]} 55... Qf5+ {[%clk 0:02:37.6]} 56. Qf4 {[%clk 0:02:00.5]}
56... Qd3+ {[%clk 0:02:36.3]} 57. Kg2 {[%clk 0:01:57.5]} 57... Qd5+ {[%clk
0:02:34]} 58. Qf3 {[%clk 0:01:56.8]} 58... Qg5+ {[%clk 0:02:33.2]} 59. Kh1
{[%clk 0:01:50.5]} 59... Qh4+ {[%clk 0:02:30.3]} 60. Kg2 {[%clk 0:01:48.5]}
60... Qg5+ {[%clk 0:02:29.6]} 61. Kh2 {[%clk 0:01:34.9]} 61... Qe5+ {[%clk
0:02:25.8]} 62. Qg3 {[%clk 0:01:33.5]} 62... Qc5 {[%clk 0:02:11.4]} 63. c7
{[%clk 0:01:31.3]} 1-0